bitfinex/quotes_BTCUSD_20241226
["timestamp","ask_amount","ask_price","bid_price","bid_amount"]
[1735217758443,1.75971884,95684.0,95683.0,8.575e-05]
[1735217758649,1.99054119,95684.0,95683.0,8.575e-05]
[1735217759231,2.13144373,95684.0,95683.0,8.575e-05]
[1735217759422,2.23243005,95684.0,95683.0,8.575e-05]
[1735217759647,2.24043005,95684.0,95683.0,0.00108575]
[1735217759852,2.23960125,95684.0,95683.0,0.00108575]
[1735217760058,2.17607011,95684.0,95683.0,8.575e-05]
[1735217760265,2.18807011,95684.0,95683.0,0.00108575]
[1735217760468,2.30692433,95684.0,95683.0,0.00108575]
[1735217760666,2.30292433,95684.0,95683.0,0.00108575]
[1735217761115,2.30692433,95684.0,95683.0,0.00108575]
[1735217762097,2.58872942,95684.0,95683.0,0.00108575]
[1735217762767,2.58472942,95684.0,95683.0,0.00108575]
[1735217762992,2.36485326,95684.0,95683.0,8.575e-05]
[1735217763203,2.57773394,95684.0,95683.0,8.575e-05]
[1735217763458,2.58473394,95684.0,95683.0,8.575e-05]
[1735217763650,2.35648794,95684.0,95683.0,8.575e-05]
[1735217763844,2.07086694,95684.0,95683.0,8.575e-05]
[1735217764266,2.17485326,95684.0,95683.0,8.575e-05]
[1735217764578,2.36873426,95684.0,95683.0,8.575e-05]
[1735217765141,2.22754926,95684.0,95683.0,8.575e-05]
[1735217765347,2.08945326,95684.0,95683.0,8.575e-05]
[1735217765527,1.88426233,95684.0,95683.0,8.575e-05]
[1735217765902,1.88026233,95684.0,95683.0,8.575e-05]
[1735217766103,1.85096233,95684.0,95683.0,8.575e-05]
[1735217766304,1.84796233,95684.0,95683.0,8.575e-05]
[1735217766508,1.85096233,95684.0,95683.0,8.575e-05]
[1735217766707,1.85796233,95684.0,95683.0,8.575e-05]
[1735217766941,1.96712833,95684.0,95683.0,8.575e-05]
[1735217767130,1.92672833,95684.0,95683.0,8.575e-05]
[1735217767359,1.93372833,95684.0,95683.0,8.575e-05]
[1735217767559,1.92972833,95684.0,95683.0,8.575e-05]
[1735217768885,1.93672833,95684.0,95683.0,8.575e-05]
[1735217769486,1.36692069,95684.0,95683.0,8.575e-05]
[1735217769700,1.00399067,95684.0,95683.0,0.07718575]
[1735217769901,1.00699067,95684.0,95683.0,0.07718575]
[1735217770530,0.99699067,95684.0,95683.0,0.07718575]
[1735217770906,0.99999067,95684.0,95683.0,0.07718575]
[1735217771143,1.14999067,95684.0,95683.0,0.07718575]
[1735217771408,0.89023391,95684.0,95683.0,0.07718575]
[1735217771839,1.09820655,95684.0,95683.0,8.575e-05]
[1735217772036,1.45155055,95684.0,95683.0,0.00108575]
[1735217772168,1.44155055,95684.0,95683.0,8.575e-05]
[1735217772388,1.44255055,95684.0,95683.0,8.575e-05]
[1735217772591,1.44355055,95684.0,95683.0,8.575e-05]
[1735217772998,1.54455055,95684.0,95683.0,8.575e-05]
[1735217773212,1.67825934,95684.0,95683.0,8.575e-05]
[1735217773422,1.67525934,95684.0,95683.0,8.575e-05]
[1735217773627,1.64855055,95684.0,95683.0,0.00108575]
[1735217774054,1.65155055,95684.0,95683.0,0.00108575]
[1735217774915,1.29820655,95684.0,95683.0,8.575e-05]
[1735217775118,1.81129955,95684.0,95683.0,8.575e-05]
[1735217775337,1.81229955,95684.0,95683.0,8.575e-05]
[1735217775841,1.79827055,95684.0,95683.0,8.575e-05]
[1735217776162,1.80127055,95684.0,95683.0,8.575e-05]
[1735217776358,1.80727055,95684.0,95683.0,8.575e-05]
[1735217777317,1.80427055,95684.0,95683.0,8.575e-05]
[1735217777520,1.80727055,95684.0,95683.0,8.575e-05]
[1735217777726,0.209047,95672.0,95671.0,1e-08]
[1735217777929,0.98485332,95672.0,95671.0,0.0001559]
[1735217778155,0.99103491,95672.0,95671.0,0.0001559]
[1735217778782,1.13219819,95672.0,95671.0,0.0001559]
[1735217778985,1.13319819,95672.0,95671.0,0.0001559]
[1735217779180,1.13419819,95672.0,95671.0,0.0001559]
[1735217781015,1.14704681,95672.0,95671.0,0.0001559]
[1735217781200,1.13419819,95672.0,95671.0,0.0001559]
[1735217784954,1.13419819,95672.0,95671.0,0.0002415]
[1735217786996,1.13319819,95672.0,95671.0,0.0002415]
[1735217787286,1.13419819,95672.0,95671.0,0.0002415]
[1735217788753,1.13319819,95672.0,95671.0,0.0002415]
[1735217789179,1.23818451,95672.0,95671.0,0.0002415]
[1735217789452,1.13419819,95672.0,95671.0,0.0002415]
[1735217791657,1.13319819,95672.0,95671.0,0.0002415]
[1735217791855,1.13219819,95672.0,95671.0,0.0002415]
[1735217792056,1.13419819,95672.0,95671.0,0.0002415]
[1735217792260,1.13419819,95672.0,95671.0,0.0805415]
[1735217792261,0.88021187,95672.0,95671.0,0.0805415]
[1735217792623,0.87921187,95672.0,95671.0,0.1284415]
[1735217793173,0.67016487,95672.0,95671.0,0.1284415]
[1735217793606,0.52800159,95672.0,95671.0,0.1284415]
[1735217795178,0.52800159,95672.0,95671.0,0.1294415]
[1735217795476,0.52800159,95672.0,95671.0,0.1284415]
[1735217795755,0.52800159,95672.0,95671.0,0.1314415]
[1735217796892,0.52800159,95672.0,95671.0,0.1544415]
[1735217797269,0.52817279,95672.0,95671.0,0.1544415]
[1735217797621,0.52817279,95672.0,95671.0,0.50382697]
[1735217797767,0.52817279,95672.0,95671.0,0.46747682]
[1735217798797,0.52817279,95672.0,95671.0,0.46647682]
[1735217798999,0.52817279,95672.0,95671.0,0.46847682]
[1735217799137,0.52917279,95672.0,95671.0,0.47047682]
[1735217799339,0.52917279,95672.0,95671.0,0.46847682]
[1735217799561,0.52817279,95672.0,95671.0,0.5324305]
[1735217799765,0.53017279,95672.0,95671.0,0.5404305]
[1735217800443,0.52917279,95672.0,95671.0,0.46647682]
[1735217800647,0.52817279,95672.0,95671.0,0.46847682]
[1735217801853,0.52917279,95672.0,95671.0,0.46947682]
[1735217802268,0.53017279,95672.0,95671.0,1.01594973]
[1735217804106,0.5239912,95672.0,95671.0,1.01594973]
[1735217804637,0.53023691,95672.0,95671.0,1.01594973]
[1735217805214,0.52923691,95672.0,95671.0,1.00994973]
[1735217805409,0.52923691,95672.0,95671.0,1.01094973]
[1735217805629,0.52923691,95672.0,95671.0,1.01594973]
[1735217805836,0.53023691,95672.0,95671.0,1.01594973]
[1735217807309,0.53023691,95672.0,95671.0,1.10987912]
[1735217808506,0.53023691,95672.0,95671.0,1.10015955]
[1735217808783,0.53023691,95672.0,95671.0,1.01594973]
[1735217816844,0.5239912,95672.0,95671.0,1.01594973]
[1735217817245,0.53027045,95672.0,95671.0,0.47547682]
[1735217823295,0.53027045,95672.0,95671.0,1.01594973]
[1735217823691,0.53027045,95672.0,95671.0,1.11594973]
[1735217824125,0.53027045,95672.0,95671.0,1.21993605]
[1735217826354,0.53027045,95672.0,95671.0,1.26179205]
[1735217826555,0.53027045,95672.0,95671.0,1.15780573]
[1735217831229,0.53027045,95672.0,95671.0,1.05780573]
[1735217831694,0.53027045,95672.0,95671.0,1.01594973]
[1735217831905,0.53027045,95672.0,95671.0,0.88774973]
[1735217835292,0.53027045,95672.0,95671.0,0.34727682]
[1735217836405,0.5239912,95672.0,95671.0,0.34727682]
[1735217836619,0.53027823,95672.0,95671.0,0.34727682]
[1735217838162,0.53027823,95672.0,95671.0,0.48699031]
[1735217838734,0.5239912,95672.0,95671.0,0.48699031]
[1735217838935,0.53027754,95672.0,95671.0,0.48699031]
[1735217839363,0.53027754,95672.0,95671.0,0.69410081]
[1735217841640,0.5239912,95672.0,95671.0,0.69410081]
[1735217841800,0.5239912,95672.0,95671.0,0.27926357]
[1735217841971,0.60967754,95672.0,95671.0,0.15227725]
[1735217842183,0.59717083,95672.0,95671.0,0.15227725]
[1735217842758,0.57214665,95672.0,95671.0,0.0112415]
[1735217842938,0.5548992,95672.0,95671.0,0.0052415]
[1735217843195,0.52875516,95672.0,95671.0,0.0282415]
[1735217843402,0.52975516,95672.0,95671.0,0.0332415]
[1735217843615,0.50094789,95672.0,95671.0,0.09688607]
[1735217843815,0.49173987,95672.0,95671.0,0.09688607]
[1735217844041,0.49059739,95672.0,95671.0,0.0332415]
[1735217844244,0.49059739,95672.0,95671.0,0.0282415]
[1735217845221,0.48859739,95672.0,95671.0,0.0232415]
[1735217845605,0.48959739,95672.0,95671.0,0.0262415]
[1735217845951,0.48959739,95672.0,95671.0,0.0312415]
[1735217846313,0.48859739,95672.0,95671.0,0.0282415]
[1735217846514,0.48859739,95672.0,95671.0,0.0232415]
[1735217846796,0.48959739,95672.0,95671.0,0.0312415]
[1735217848447,0.48859739,95672.0,95671.0,0.0282415]
[1735217848644,0.48959739,95672.0,95671.0,0.0042415]
[1735217848963,0.48959739,95672.0,95671.0,0.0082415]
[1735217849360,0.48959739,95672.0,95671.0,0.0042415]
[1735217849562,0.48859739,95672.0,95671.0,0.0002415]
[1735217849812,0.48959739,95672.0,95671.0,0.0082415]
[1735217849988,0.48959739,95672.0,95671.0,0.0042415]
[1735217850357,0.49059739,95672.0,95671.0,0.0042415]
[1735217851212,0.68859739,95672.0,95671.0,0.0082415]
[1735217852067,0.68659739,95672.0,95671.0,0.0042415]
[1735217852345,0.68659739,95672.0,95671.0,0.0002415]
[1735217852705,0.68659739,95672.0,95671.0,0.0042415]
[1735217853129,0.68659739,95672.0,95671.0,0.0002415]
[1735217853533,0.68759739,95672.0,95671.0,0.0042415]
[1735217854708,0.68659739,95672.0,95671.0,0.0002415]
[1735217855031,0.79058371,95672.0,95671.0,0.0002415]
[1735217855485,0.96418938,95672.0,95671.0,0.0002415]
[1735217855687,0.9319245,95672.0,95671.0,0.0002415]
[1735217856092,0.92931141,95672.0,95671.0,0.0002415]
[1735217856351,0.93231141,95672.0,95671.0,0.0002415]
[1735217856558,0.93131141,95672.0,95671.0,0.0002415]
[1735217857078,0.93431141,95672.0,95671.0,0.0002415]
[1735217857278,1.39589629,95672.0,95671.0,0.0002415]
[1735217857524,1.3572355,95672.0,95671.0,0.0002415]
[1735217857899,1.3582355,95672.0,95671.0,0.0002415]
[1735217858108,1.46222182,95672.0,95671.0,0.0002415]
[1735217858308,1.53714749,95672.0,95671.0,0.0002415]
[1735217858540,1.43316117,95672.0,95671.0,0.0002415]
[1735217858712,1.42416117,95672.0,95671.0,0.0002415]
[1735217858911,1.10621794,95672.0,95671.0,0.0002415]
[1735217859564,0.359082,95656.0,95655.0,0.0001712]
[1735217859776,0.99039386,95656.0,95655.0,0.00032703]
[1735217860166,0.99483087,95656.0,95655.0,0.00032703]
[1735217860780,0.99483087,95656.0,95655.0,0.00232703]
[1735217861283,1.74366587,95656.0,95655.0,0.00232703]
[1735217861490,1.15360887,95656.0,95655.0,0.00232703]
[1735217861747,0.99483087,95656.0,95655.0,0.00232703]
[1735217862116,0.99483087,95656.0,95655.0,0.00432703]
[1735217862322,1.09937787,95656.0,95655.0,0.00432703]
[1735217862516,1.09937787,95656.0,95655.0,0.00032703]
[1735217862818,1.09937787,95656.0,95655.0,0.00132703]
[1735217863223,1.09921975,95656.0,95655.0,0.00132703]
[1735217863387,0.99467275,95656.0,95655.0,0.00132703]
[1735217864031,0.68176255,95656.0,95655.0,0.00132703]
[1735217864240,0.41146014,95656.0,95655.0,0.00132703]
[1735217864443,0.41146014,95656.0,95655.0,0.14935535]
[1735217864833,0.40192554,95656.0,95655.0,0.14935535]
[1735217865195,0.37040703,95656.0,95655.0,0.81062404]
[1735217865322,0.37040703,95656.0,95655.0,0.89322404]
[1735217865734,0.36803291,95656.0,95655.0,0.89322404]
[1735217865931,0.36903291,95656.0,95655.0,0.89222404]
[1735217866132,0.36903291,95656.0,95655.0,0.99222404]
[1735217866335,0.09364393,95669.0,95668.0,1.08022891]
[1735217866598,0.0001712,95684.0,95671.0,0.223]
[1735217866738,0.0001712,95684.0,95671.0,0.32698632]
[1735217866933,0.0001712,95684.0,95671.0,0.22698632]
[1735217867237,0.0001712,95684.0,95671.0,0.32698632]
[1735217867438,0.0001712,95684.0,95671.0,0.86745923]
[1735217867662,0.0001712,95684.0,95671.0,0.97144555]
[1735217868385,0.0001712,95684.0,95671.0,0.87144555]
[1735217868592,0.0001712,95684.0,95671.0,0.66745923]
[1735217868768,0.0011712,95672.0,95671.0,0.77145923]
[1735217869607,0.0001712,95672.0,95671.0,0.76745923]
[1735217869813,0.0001712,95672.0,95671.0,0.86745923]
[1735217870381,0.0011712,95672.0,95671.0,0.87145923]
[1735217870634,0.0021712,95672.0,95671.0,0.98244555]
[1735217871125,0.0011712,95672.0,95671.0,0.97544555]
[1735217871282,0.0021712,95672.0,95671.0,0.98344555]
[1735217871620,0.0011712,95672.0,95671.0,0.97944555]
[1735217872013,0.0021712,95672.0,95671.0,0.98344555]
[1735217872842,0.0021712,95672.0,95671.0,0.67945923]
[1735217873046,0.0021712,95672.0,95671.0,0.69994206]
[1735217873633,0.0021712,95672.0,95671.0,0.67694206]
[1735217873878,0.0021712,95672.0,95671.0,0.66894206]
[1735217873879,0.0011712,95672.0,95671.0,0.66894206]
[1735217874221,0.0021712,95672.0,95671.0,0.69994206]
[1735217874441,0.0021712,95672.0,95671.0,0.26345547]
[1735217874643,0.0011712,95672.0,95671.0,0.15546915]
[1735217874856,0.0011712,95672.0,95671.0,0.15651426]
[1735217875011,0.0021712,95672.0,95671.0,0.15951426]
[1735217876241,0.0021712,95672.0,95671.0,0.15651426]
[1735217876422,0.0011712,95672.0,95671.0,0.15651426]
[1735217876640,0.0021712,95672.0,95671.0,0.15951426]
[1735217876887,0.0011712,95672.0,95671.0,0.15151426]
[1735217877132,0.0011712,95672.0,95671.0,0.15451426]
[1735217877649,0.0011712,95672.0,95671.0,0.15151426]
[1735217877932,0.0011712,95672.0,95671.0,0.15546915]
[1735217878285,0.0011712,95672.0,95671.0,0.15651426]
[1735217878543,0.0001712,95672.0,95671.0,0.15351426]
[1735217878747,0.0011712,95672.0,95671.0,0.15651426]
[1735217879447,0.0011712,95672.0,95671.0,0.15351426]
[1735217879670,0.0001712,95672.0,95671.0,0.15351426]
[1735217879954,0.0011712,95672.0,95671.0,0.26050058]
[1735217880129,0.0011712,95672.0,95671.0,0.25945547]
[1735217880325,0.0011712,95672.0,95671.0,0.25445547]
[1735217880528,0.0011712,95672.0,95671.0,0.15046915]
[1735217880746,0.0011712,95672.0,95671.0,0.15651426]
[1735217881248,0.0011712,95672.0,95671.0,0.15151426]
[1735217881452,0.0011712,95672.0,95671.0,0.15451426]
[1735217881657,0.0001712,95672.0,95671.0,0.15151426]
[1735217881864,0.0011712,95672.0,95671.0,0.25850058]
[1735217882070,0.0001712,95672.0,95671.0,0.25445547]
[1735217882210,0.0001712,95672.0,95671.0,0.25145547]
[1735217882405,0.0011712,95672.0,95671.0,0.25445547]
[1735217882663,0.0011712,95672.0,95671.0,0.25145547]
[1735217882971,0.0011712,95672.0,95671.0,0.25445547]
[1735217883144,0.0021712,95672.0,95671.0,0.25445547]
[1735217883650,0.0021712,95672.0,95671.0,0.25945547]
[1735217883970,0.0021712,95672.0,95671.0,0.25445547]
[1735217884346,0.0031712,95672.0,95671.0,0.26045547]
[1735217884752,0.0031712,95672.0,95671.0,0.15646915]
[1735217884910,0.0031712,95672.0,95671.0,0.2361142]
[1735217885115,0.0031712,95672.0,95671.0,0.37656915]
[1735217885312,0.0001712,95672.0,95671.0,0.37356915]
[1735217885525,0.0011712,95672.0,95671.0,0.38356915]
[1735217885733,0.0021712,95672.0,95671.0,0.48755547]
[1735217886354,0.0021712,95672.0,95671.0,1.02802838]
[1735217887577,0.0021712,95672.0,95671.0,0.92404206]
[1735217890378,0.0021712,95672.0,95671.0,0.79794206]
[1735217893129,0.0011712,95672.0,95671.0,0.79094206]
[1735217893333,0.0021712,95672.0,95671.0,0.79794206]
[1735217894205,0.0011712,95672.0,95671.0,0.79494206]
[1735217894441,0.0011712,95672.0,95671.0,0.90192838]
[1735217894634,0.0021712,95672.0,95671.0,0.90192838]
[1735217894843,0.0021712,95672.0,95671.0,0.80192838]
[1735217895050,0.0021712,95672.0,95671.0,0.90192838]
[1735217896445,0.0021712,95672.0,95671.0,0.79794206]
[1735217902637,0.0021712,95672.0,95671.0,0.89794206]
[1735217905244,0.0021712,95672.0,95671.0,0.93061412]
[1735217905876,0.0021712,95672.0,95671.0,0.89794206]
[1735217905986,0.0021712,95672.0,95671.0,1.01261237]
[1735217906285,0.0021712,95672.0,95671.0,1.11659869]
[1735217906490,0.0021712,95672.0,95671.0,1.08392838]
[1735217907701,0.0021712,95672.0,95671.0,1.17798187]
[1735217908864,0.0021712,95672.0,95671.0,1.22496413]
[1735217909277,0.0001712,95684.0,95683.0,1.05449591]
[1735217909497,0.0481,95717.0,95710.0,0.208964]
[1735217909709,0.0787,95718.0,95716.0,0.208951]
[1735217909921,0.0787,95718.0,95717.0,0.10398632]
[1735217910587,0.0787,95725.0,95718.0,0.417894]
[1735217910797,0.09364393,95726.0,95720.0,0.208942]
[1735217911015,0.0006901,95721.0,95720.0,0.383024]
[1735217911248,0.0006901,95721.0,95720.0,0.406024]
[1735217911822,0.0006901,95721.0,95720.0,0.606024]
[1735217912037,0.0006901,95721.0,95720.0,0.656924]
[1735217912220,0.0006901,95721.0,95720.0,1.19739691]
[1735217912435,0.0006901,95721.0,95720.0,1.44400833]
[1735217912637,0.0006901,95721.0,95720.0,1.54400833]
[1735217913087,0.0006901,95721.0,95720.0,1.54900833]
[1735217913657,0.0006901,95721.0,95720.0,1.54600833]
[1735217914170,0.0006901,95721.0,95720.0,1.55500833]
[1735217914171,0.0016901,95721.0,95720.0,1.55500833]
[1735217914306,0.00070317,95721.0,95720.0,1.55500833]
[1735217914786,0.0482712,95752.0,95733.0,0.1]
[1735217914912,0.04833086,95752.0,95751.0,0.208875]
[1735217915126,0.04833086,95752.0,95751.0,0.31286132]
[1735217916170,0.00023086,95752.0,95751.0,0.31286132]
[1735217916926,0.00023086,95752.0,95751.0,0.31786132]
[1735217921659,0.00023086,95752.0,95751.0,0.338905]
[1735217922448,0.00023086,95752.0,95751.0,0.4145723]
[1735217922623,0.00023086,95752.0,95751.0,0.338905]
[1735217934262,0.00023086,95752.0,95751.0,0.333905]
[1735217934485,0.00123086,95752.0,95751.0,0.341905]
[1735217934868,0.00123086,95752.0,95751.0,0.339905]
[1735217935085,0.00123086,95752.0,95751.0,0.44389132]
[1735217935293,0.00123086,95752.0,95751.0,0.44589132]
[1735217935675,0.00123086,95752.0,95751.0,0.44389132]
[1735217935880,0.00123086,95752.0,95751.0,0.44589132]
[1735217936309,0.00023086,95752.0,95751.0,0.43989132]
[1735217936667,0.00023086,95752.0,95751.0,0.44489132]
[1735217937365,0.00023086,95752.0,95751.0,0.44289132]
[1735217937577,0.00023086,95752.0,95751.0,0.44489132]
[1735217937984,0.00023086,95752.0,95751.0,0.44289132]
[1735217938398,0.00023086,95752.0,95751.0,0.44489132]
[1735217941450,0.00023086,95752.0,95751.0,1.20836423]
[1735217941678,0.00023086,95752.0,95751.0,1.28446423]
[1735217941884,0.00023086,95752.0,95751.0,1.32956423]
[1735217942082,0.00023086,95752.0,95751.0,1.33156423]
[1735217942314,8.6e-07,95752.0,95751.0,1.33156423]
[1735217942711,8.56e-05,95762.0,95761.0,0.509953]
[1735217942915,6e-07,95762.0,95761.0,1.27139323]
[1735217943509,6e-07,95762.0,95761.0,1.30388741]
[1735217943730,6e-07,95762.0,95761.0,1.27139323]
[1735217944086,6e-07,95762.0,95761.0,1.28039323]
[1735217944347,6e-07,95762.0,95761.0,1.31289003]
[1735217944562,6e-07,95762.0,95761.0,1.38000197]
[1735217944780,0.0001712,95768.0,95767.0,0.2]
[1735217944977,0.0001712,95768.0,95767.0,0.43201652]
[1735217945127,0.0001712,95768.0,95767.0,0.43097264]
[1735217945476,0.0001712,95768.0,95767.0,0.4634792]
[1735217945677,0.0001712,95768.0,95767.0,0.6723192]
[1735217946539,0.0001712,95768.0,95767.0,1.38580085]
[1735217946972,0.0001712,95768.0,95767.0,1.39380085]
[1735217947920,0.0001712,95768.0,95767.0,1.40280085]
[1735217948121,0.0001712,95768.0,95767.0,1.88680791]
[1735217949082,0.0001712,95768.0,95767.0,1.65278604]
[1735217951422,0.0001712,95768.0,95767.0,1.67323185]
[1735217952575,0.0001712,95768.0,95767.0,1.64072529]
[1735217952895,0.0001712,95768.0,95767.0,1.67315481]
[1735217953452,0.0001712,95768.0,95767.0,1.64072529]
[1735217953647,0.0001712,95780.0,95767.0,1.64072529]
[1735217953648,0.0001712,95780.0,95779.0,0.308814]
[1735217953855,0.00025809,95780.0,95779.0,0.455057]
[1735217954500,0.00025809,95780.0,95779.0,0.31280032]
[1735217955058,0.00025809,95780.0,95779.0,0.32180032]
[1735217955260,0.00025809,95780.0,95779.0,0.66539425]
[1735217955599,0.0774,95786.0,95779.0,0.66539425]
[1735217955776,0.0774,95786.0,95785.0,0.2088]
[1735217955983,0.0774,95786.0,95785.0,0.41677264]
[1735217957007,8.56e-05,95793.0,95792.0,0.208785]
[1735217957157,8.56e-05,95793.0,95792.0,0.33577132]
[1735217957565,8.56e-05,95793.0,95792.0,0.31277132]
[1735217958174,0.0010856,95793.0,95792.0,0.32977132]
[1735217958398,0.0010856,95793.0,95792.0,0.32077132]
[1735217958650,0.00096113,95793.0,95792.0,0.32077132]
[1735217959030,0.00096113,95793.0,95792.0,0.41410424]
[1735217959329,0.00096113,95793.0,95792.0,0.40610424]
[1735217959709,0.00096113,95793.0,95792.0,0.42110424]
[1735217959909,0.00096113,95793.0,95792.0,0.51224192]
[1735217960113,0.0774,95804.0,95803.0,0.208761]
[1735217960289,0.0774,95804.0,95803.0,0.31274732]
[1735217961354,0.0774,95804.0,95803.0,0.004]
[1735217961563,0.0774,95804.0,95803.0,0.013]
[1735217962748,0.0774,95804.0,95803.0,0.004]
[1735217963094,0.0774,95804.0,95803.0,0.009]
[1735217963373,0.0774,95804.0,95803.0,0.013]
[1735217963767,0.0774,95804.0,95803.0,0.009]
[1735217964068,0.0774,95804.0,95803.0,0.003]
[1735217964230,0.0774,95804.0,95803.0,0.011]
[1735217966387,0.0774,95804.0,95803.0,0.008]
[1735217966929,0.0774,95804.0,95803.0,0.003]
[1735217967301,0.0774,95804.0,95803.0,0.011]
[1735217967925,0.0774,95804.0,95803.0,0.008]
[1735217968063,0.0774,95804.0,95801.0,0.208764]
[1735217969227,0.0774,95804.0,95803.0,0.002]
[1735217969381,0.0774,95804.0,95803.0,0.009]
[1735217969581,0.0774,95804.0,95803.0,0.002]
[1735217969807,0.0774,95804.0,95797.0,0.208773]
[1735217970013,0.0774,95804.0,95801.0,0.011]
[1735217970214,0.0809,95802.0,95801.0,0.011]
[1735217970621,0.0809,95802.0,95801.0,0.008]
[1735217970819,0.0809,95802.0,95792.0,0.23000153]
[1735217971053,0.00104413,95801.0,95792.0,0.43878653]
[1735217971271,0.2309,95799.0,95792.0,0.02121753]
[1735217971444,0.08194413,95798.0,95792.0,0.02121753]
[1735217971653,0.2309,95797.0,95792.0,0.02121753]
[1735217971856,0.0809,95795.0,95792.0,0.02121753]
[1735217972060,0.358783,95793.0,95792.0,0.02121753]
[1735217972216,0.439683,95793.0,95792.0,0.02121753]
[1735217973059,0.0809,95791.0,95780.0,0.208981]
[1735217973260,0.08194413,95790.0,95780.0,0.2507616]
[1735217973460,0.08194413,95790.0,95784.0,0.208801]
[1735217973707,0.0809,95790.0,95787.0,0.02140243]
[1735217974423,0.0825,95788.0,95787.0,0.02140243]
[1735217975569,0.0825,95788.0,95780.0,0.004171]
[1735217975570,0.1995,95788.0,95780.0,0.004171]
[1735217975684,0.15104413,95787.0,95780.0,0.000171]
[1735217976041,0.2325,95781.0,95780.0,0.000171]
[1735217976402,0.2325,95781.0,95780.0,0.02093388]
[1735217977032,0.0825,95798.0,95784.0,0.1]
[1735217977194,0.0825,95798.0,95796.0,0.208775]
[1735217979224,0.0825,95798.0,95796.0,0.211775]
[1735217979634,0.0825,95798.0,95796.0,0.208775]
[1735217979833,0.0825,95798.0,95796.0,0.212775]
[1735217980260,0.0825,95798.0,95797.0,0.02047829]
[1735217982264,0.0825,95804.0,95798.0,0.208772]
[1735217982572,0.0825,95804.0,95798.0,0.31275832]
[1735217983539,0.0825,95804.0,95798.0,0.31475832]
[1735217984863,0.0825,95804.0,95798.0,0.31275832]
[1735217985289,0.0825,95804.0,95798.0,0.32475832]
[1735217985708,0.0825,95804.0,95798.0,0.32175832]
[1735217985903,0.0825,95804.0,95798.0,0.31575832]
[1735217986330,0.0825,95804.0,95798.0,0.32475832]
[1735217993265,0.0825,95804.0,95798.0,0.42874464]
[1735217993795,0.0825,95804.0,95798.0,0.32475832]
[1735217994432,0.00104413,95803.0,95798.0,0.012]
[1735217994630,0.48847,95799.0,95798.0,0.012]
[1735217995050,0.48847,95799.0,95798.0,0.003]
[1735217995239,0.439572,95798.0,95795.0,0.09333292]
[1735217995466,0.208776,95796.0,95795.0,0.09333292]
[1735217995648,0.358776,95796.0,95795.0,0.09333292]
[1735217996174,0.208779,95795.0,95792.0,0.0001712]
[1735217996305,0.358783,95793.0,95792.0,0.0001712]
[1735218000977,0.15,95794.0,95792.0,0.0001712]
[1735218001206,0.0808,95795.0,95792.0,0.0001712]
[1735218001602,0.00104413,95794.0,95792.0,0.0001712]
[1735218001803,0.439583,95793.0,95792.0,0.0001712]
[1735218002703,0.439583,95793.0,95792.0,0.0021712]
[1735218003046,0.18745907,95817.0,95816.0,0.358733]
[1735218003238,0.18745907,95817.0,95816.0,0.56271932]
[1735218003437,0.18745907,95817.0,95816.0,0.41271932]
[1735218003591,0.18745907,95817.0,95816.0,0.12487469]
[1735218003767,0.18745907,95817.0,95816.0,0.33360769]
[1735218003976,0.18745907,95817.0,95808.0,0.208749]
[1735218003977,0.0001712,95817.0,95808.0,0.208749]
[1735218004175,0.0001712,95817.0,95792.0,0.35911104]
[1735218004176,0.0001712,95817.0,95802.0,0.749562]
[1735218004393,0.12624813,95812.0,95803.0,0.5408]
[1735218004598,0.10503045,95811.0,95792.0,0.00032704]
[1735218004804,0.0456,95801.0,95792.0,0.00032704]
[1735218005068,0.590541,95799.0,95795.0,0.18649931]
[1735218005212,0.35,95796.0,95795.0,0.09379931]
[1735218005421,0.35,95796.0,95791.0,0.23312414]
[1735218005422,0.35,95792.0,95791.0,0.17132414]
[1735218005642,0.1,95779.0,95776.0,0.27974897]
[1735218005854,0.1956,95767.0,95766.0,0.09352522]
[1735218006062,0.19664413,95767.0,95766.0,0.09352522]
[1735218006600,0.40009508,95767.0,95766.0,0.09352522]
[1735218006799,0.39905095,95767.0,95766.0,0.09352522]
[1735218007005,0.1956,95767.0,95766.0,0.09352522]
[1735218007182,0.19664413,95767.0,95761.0,8.689e-05]
[1735218007381,0.00104413,95766.0,95761.0,8.689e-05]
[1735218008945,0.1415,95771.0,95762.0,0.208851]
[1735218008946,0.15,95770.0,95762.0,0.208851]
[1735218009072,0.001,95766.0,95762.0,0.208851]
[1735218009293,0.001,95766.0,95764.0,0.208846]
[1735218009489,0.001,95766.0,95764.0,0.31283232]
[1735218010291,0.15104413,95789.0,95765.0,0.208843]
[1735218010536,0.001,95766.0,95765.0,0.208843]
[1735218010710,0.001,95766.0,95765.0,0.417686]
[1735218011063,0.00104413,95788.0,95765.0,0.417686]
[1735218011208,0.03228923,95787.0,95765.0,0.417686]
[1735218011430,0.00104413,95786.0,95765.0,0.417686]
[1735218011862,0.01636508,95782.0,95765.0,0.417686]
[1735218012035,0.01636508,95782.0,95765.0,0.003]
[1735218012036,0.2328,95779.0,95765.0,0.003]
[1735218012225,0.358843,95766.0,95765.0,0.003]
[1735218012418,0.3947273,95766.0,95765.0,0.003]
[1735218012758,0.3947273,95766.0,95765.0,0.01]
[1735218012923,0.3947273,95766.0,95765.0,0.003]
[1735218013122,0.358843,95766.0,95765.0,0.003]
[1735218013332,0.358843,95766.0,95765.0,0.001]
[1735218013564,0.15,95765.0,95762.0,0.000171]
[1735218013760,0.00104413,95764.0,95762.0,0.000171]
[1735218014324,0.358848,95763.0,95762.0,0.000171]
[1735218014672,0.4158171,95763.0,95762.0,0.000171]
[1735218015289,0.51980342,95763.0,95762.0,0.000171]
[1735218015905,0.46283432,95763.0,95762.0,0.000171]
[1735218016601,0.002,95764.0,95762.0,0.000171]
[1735218016802,0.00204413,95763.0,95762.0,0.000171]
[1735218017031,0.00104413,95775.0,95762.0,0.000171]
[1735218017209,0.00104413,95775.0,95762.0,0.20902]
[1735218017535,0.002,95763.0,95762.0,0.41787]
[1735218018199,0.002,95763.0,95762.0,0.20902]
[1735218018399,0.001,95763.0,95762.0,0.20902]
[1735218018601,0.001,95763.0,95762.0,0.000171]
[1735218018958,0.002,95763.0,95762.0,0.000171]
[1735218019167,0.001,95763.0,95762.0,0.000171]
[1735218019588,0.001,95763.0,95762.0,0.004171]
[1735218020421,0.00104413,95772.0,95762.0,0.001171]
[1735218020619,0.15,95777.0,95762.0,0.002171]
[1735218020829,0.00104413,95776.0,95762.0,0.210021]
[1735218021026,0.00104413,95776.0,95762.0,0.211021]
[1735218021601,0.00104413,95776.0,95762.0,0.210021]
[1735218021805,0.001,95777.0,95762.0,0.25989809]
[1735218022032,0.00104413,95776.0,95762.0,0.000171]
[1735218022234,0.00104413,95776.0,95762.0,0.002171]
[1735218022647,0.00104413,95776.0,95762.0,0.000171]
[1735218022972,0.00204413,95776.0,95762.0,0.000171]